fUST/lending_fUST_20250612
["ID","MTS","AMOUNT","RATE_DAILY","PERIOD"]
[365508903,1749721847140,-460.0,0.00023287,4]
[365508904,1749721847148,-818.32,0.00023287,4]
[365508905,1749721847158,-880.93,0.00023287,4]
[365508906,1749721847168,-751.2,0.00023287,4]
[365508907,1749721847177,-869.44,0.00023287,4]
[365508908,1749721847186,-460.0,0.00023287,4]
[365508909,1749721847195,-759.33,0.00023287,4]
[365508910,1749721847204,-460.0,0.00023287,4]
[365508911,1749721847213,-944.28,0.00023287,4]
[365508912,1749721847222,-417.78066659,0.00023287,4]
[365508913,1749721847232,-20245.51208758,0.000233,2]
[365508914,1749721847242,-151.0,0.000233,7]
[365508915,1749721847251,-151.0,0.000233,7]
[365508916,1749721847260,-151.0,0.000233,7]
[365508917,1749721847269,-14999.9999576,0.00023313,7]
[365508918,1749721847278,-31832.12,0.00023322,10]
[365508919,1749721847287,-4000.0,0.00023388,3]
[365508920,1749721847296,-168.0,0.00023388,2]
[365508921,1749721847305,-501.13731137,0.00023392,2]
[365508922,1749721847314,-268.122783,0.00023392,2]
[365508923,1749721847323,-224.0,0.00023403,2]
[365508924,1749721847332,-151.0,0.0002343,6]
[365508925,1749721847341,-155.091398,0.00023439,7]
[365508926,1749721847350,-405.38112492,0.00023452,9]
[365508927,1749721847359,-2200.0,0.00023465,2]
[365508928,1749721847368,-160168.16,0.000235,7]
[365508929,1749721847377,-3000.05,0.000235,14]
[365508930,1749721847387,-151.0,0.000235,7]
[365508931,1749721847395,-151.0,0.000235,7]
[365508932,1749721847404,-151.0,0.000235,7]
[365508933,1749721847413,-577.876372,0.000235,2]
[365508934,1749721847422,-577.876372,0.000235,2]
[365508935,1749721847431,-151.0,0.000235,7]
[365508936,1749721847440,-151.0,0.000235,7]
[365508937,1749721847449,-151.0,0.000235,7]
[365508938,1749721847458,-62460.72,0.000235,2]
[365508939,1749721847467,-156.750877,0.000235,7]
[365508940,1749721847477,-156.750877,0.000235,7]
[365508941,1749721847486,-151.0,0.000235,7]
[365508942,1749721847496,-165.606024,0.000235,7]
[365508943,1749721847505,-165.606024,0.000235,7]
[365508944,1749721847514,-151.0,0.000235,7]
[365508945,1749721847523,-151.0,0.000235,7]
[365508946,1749721847532,-151.0,0.000235,7]
[365508947,1749721847541,-151.0,0.000235,7]
[365508948,1749721847551,-151.0,0.000235,7]
[365508949,1749721847560,-151.0,0.000235,7]
[365508950,1749721847568,-151.0,0.000235,7]
[365508951,1749721847577,-151.0,0.000235,7]
[365508952,1749721847587,-290.0,0.000235,7]
[365508953,1749721847596,-151.0,0.000235,7]
[365508954,1749721847605,-207.0,0.0002353,2]
[365508955,1749721847615,-982.94293978,0.00023559,2]
[365508956,1749721847624,-460.0,0.00023561,2]
[365508957,1749721847633,-720.29,0.00023561,4]
[365508958,1749721847643,-1063.08,0.00023561,4]
[365508959,1749721847652,-473.1,0.00023561,4]
[365508960,1749721847661,-460.0,0.00023561,4]
[365508961,1749721847671,-460.0,0.00023561,4]
[365508962,1749721847680,-605.77,0.00023561,4]
[365508963,1749721847689,-460.0,0.00023561,4]
[365508964,1749721847699,-460.0,0.00023561,4]
[365508965,1749721847708,-460.0,0.00023561,4]
[365508966,1749721847717,-460.0,0.00023561,4]
[365508967,1749721847727,-460.0,0.00023561,4]
[365508968,1749721847736,-460.0,0.00023561,4]
[365508969,1749721847745,-460.0,0.00023561,4]
[365508970,1749721847754,-818.32,0.00023561,4]
[365508971,1749721847764,-880.93,0.00023561,4]
[365508972,1749721847773,-751.2,0.00023561,4]
[365508973,1749721847781,-869.44,0.00023561,4]
[365508974,1749721847790,-460.0,0.00023561,4]
[365508975,1749721847799,-759.33,0.00023561,4]
[365508976,1749721847809,-460.0,0.00023561,4]
[365508977,1749721847818,-944.28,0.00023561,4]
[365508978,1749721847828,-982.94293978,0.00023574,2]
[365508979,1749721847838,-1689.123308,0.0002358,5]
[365508980,1749721847847,-113068.54979123,0.000236,2]
[365508981,1749721847858,-151.0,0.000236,7]
[365508982,1749721847868,-151.0,0.000236,7]
[365508983,1749721847877,-151.0,0.000236,7]
[365508984,1749721847888,-165.606024,0.000236,7]
[365508985,1749721847971,-165.606024,0.000236,7]
[365508986,1749721847990,-151.0,0.000236,7]
[365508987,1749721847999,-151.0,0.000236,7]
[365508988,1749721848008,-151.0,0.000236,7]
[365508989,1749721848018,-1000.0,0.000236,5]
[365508990,1749721848027,-151.0,0.000236,7]
[365508991,1749721848036,-151.0,0.000236,7]
[365508992,1749721848045,-153.641648,0.000236,7]
[365508993,1749721848054,-151.0,0.000236,7]
[365508994,1749721848063,-151.0,0.000236,7]
[365508995,1749721848073,-151.0,0.00023615,7]
[365508996,1749721848083,-982.94293978,0.00023622,2]
[365508997,1749721848092,-430.52729677,0.00023624,2]
[365508998,1749721848101,-430.52729677,0.00023639,2]
[365508999,1749721848111,-369.88795274,0.00023657,2]
[365509000,1749721848123,-430.52729677,0.00023658,2]
[365509001,1749721848134,-405.38112492,0.00023659,9]
[365509002,1749721848143,-982.94293978,0.00023664,2]
[365509003,1749721848152,-430.52729677,0.00023669,2]
[365509004,1749721848161,-160.0,0.00023681,3]
[365509005,1749721848171,-161.12486957,0.00023681,5]
[365509006,1749721848180,-160.0,0.00023681,5]
[365509007,1749721848190,-166.32921779,0.00023681,5]
[365509008,1749721848204,-91768.27587007,0.00023687,2]
[365509009,1749721848213,-218.929996,0.00023687,7]
[365509010,1749721848223,-200.0,0.0002369,7]
[365509011,1749721848232,-200.0,0.0002369,7]
[365509012,1749721848242,-200.0,0.0002369,7]
[365509013,1749721848251,-200.0,0.0002369,7]
[365509014,1749721848260,-200.0,0.0002369,7]
[365509015,1749721848270,-200.0,0.0002369,7]
[365509016,1749721848279,-201.654,0.0002369,7]
[365509017,1749721848288,-200.0,0.00023691,7]
[365509018,1749721848297,-200.0,0.00023691,7]
[365509019,1749721848306,-200.0,0.00023691,7]
[365509020,1749721848315,-200.0,0.00023691,7]
[365509021,1749721848325,-200.0,0.00023691,7]
[365509022,1749721848334,-200.0,0.00023691,7]
[365509023,1749721848344,-200.0,0.00023691,7]
[365509024,1749721848353,-1117.80193134,0.00023699,30]
[365509025,1749721848362,-3305.75,0.000237,7]
[365509026,1749721848372,-986.7451833,0.00023753,3]
[365509027,1749721848381,-500.96407444,0.00023773,2]
[365509028,1749721848390,-500.0,0.00023773,2]
[365509029,1749721848400,-500.0,0.00023773,2]
[365509030,1749721848409,-500.0,0.00023773,2]
[365509031,1749721848418,-500.0,0.00023773,2]
[365509032,1749721848427,-500.0,0.00023773,2]
[365509033,1749721848437,-500.0,0.00023773,2]
[365509034,1749721848447,-500.0,0.00023773,2]
[365509035,1749721848456,-500.0,0.00023773,2]
[365509036,1749721848465,-500.0,0.00023773,2]
[365509037,1749721848474,-500.0,0.00023773,2]
[365509038,1749721848484,-10653.07866369,0.0002378,5]
[365509039,1749721848493,-350.778332,0.0002378,7]
[365509040,1749721848502,-350.778332,0.0002378,7]
[365509041,1749721848511,-151.0,0.0002378,7]
[365509042,1749721848520,-151.0,0.0002378,7]
[365509043,1749721848529,-285.658887,0.0002378,7]
[365509044,1749721848538,-285.658887,0.0002378,7]
[365509045,1749721848547,-151.0,0.0002378,7]
[365509046,1749721848556,-151.0,0.0002378,7]
[365509047,1749721848565,-500.0,0.00023788,2]
[365509048,1749721848574,-500.0,0.00023788,2]
[365509049,1749721848583,-500.0,0.00023788,2]
[365509050,1749721848592,-500.0,0.00023788,2]
[365509051,1749721848601,-500.0,0.00023788,2]
[365509052,1749721848611,-500.0,0.00023788,2]
[365509053,1749721848620,-500.0,0.00023788,2]
[365509054,1749721848629,-500.0,0.00023788,2]
[365509055,1749721848638,-266.0,0.00023788,2]
[365509056,1749721848648,-151.0,0.00023788,7]
[365509057,1749721848658,-151.0,0.00023788,7]
[365509058,1749721848667,-331.678923,0.00023788,7]
[365509059,1749721848676,-331.678923,0.00023788,7]
[365509060,1749721848685,-151.0,0.00023788,7]
[365509061,1749721848694,-151.0,0.00023788,7]
[365509062,1749721848703,-151.0,0.00023788,7]
[365509063,1749721848713,-151.0,0.00023788,7]
[365509064,1749721848722,-151.0,0.00023788,7]
[365509065,1749721848732,-151.0,0.00023788,7]
[365509066,1749721848741,-577.876372,0.00023788,2]
[365509067,1749721848750,-577.876372,0.00023788,2]
[365509068,1749721848759,-96277.54347645,0.00023788,2]
[365509069,1749721848851,-667.1387,0.00023788,2]
[365509070,1749721848894,-313.03,0.00021597,2]
[365509071,1749721848903,-213.19196119,0.00022702,2]
[365509072,1749721848962,-405.0,0.00022685,2]
[365509073,1749721848971,-0.01016649,0.00022702,2]
[365509074,1749721848981,-626.05,0.0002356,2]
[365509075,1749721848990,-8474.36933351,0.00023788,2]
[365509076,1749721849002,-349.93587836,0.00023788,2]
[365509077,1749721849203,-153.0,0.00022503,2]
[365509078,1749721849212,-153.0,0.00022503,2]
[365509079,1749721849222,-153.0,0.00022503,2]
[365509080,1749721849231,-153.0,0.00022503,2]
[365509081,1749721849241,-153.0,0.00022503,2]
[365509082,1749721849250,-153.0,0.00022503,2]
[365509083,1749721849260,-153.0,0.00022503,2]
[365509084,1749721849271,-153.0,0.00022503,2]
[365509085,1749721849279,-160.0,0.00022702,2]
[365509086,1749721849289,-3864.96113225,0.000234,2]
[365509087,1749721849297,-54754.76386775,0.00023788,2]
[365509090,1749721915110,179.532932,0.00017954,2]
[365509091,1749721926365,15395.3538839,0.00017811,2]
[365509098,1749722020664,1000.0,0.0002495,120]
[365509099,1749722028671,1000.0,0.0002495,120]
[365509102,1749722035550,500.0,0.0002495,120]
[365509103,1749722062513,1000.0,0.0002495,120]
[365509104,1749722139394,751.937866,0.00017811,2]
[365509108,1749722502430,188.566832,0.00017811,2]
[365509109,1749722761039,155.0003091,0.00024951,60]
[365509111,1749722789579,243.621522,0.00013699,2]
[365509128,1749723032791,-862.00000015,0.00018998,2]
[365509129,1749723032801,-354.93626912,0.00018998,2]
[365509130,1749723032811,-430.4051036,0.00019065,2]
[365509131,1749723032821,-300.0,0.00019742,2]
[365509132,1749723032831,-300.0,0.00019742,2]
[365509133,1749723032841,-1200.0,0.00019742,2]
[365509134,1749723032851,-24900.0,0.00019743,2]
[365509135,1749723032861,-189.16571,0.0001981,2]
[365509136,1749723032870,-1563.0,0.00019938,2]
[365509137,1749723032879,-2514.17759859,0.00019999,2]
[365509138,1749723032889,-3000.0,0.0002,2]
[365509140,1749723032899,-243.621522,0.00020187,2]
[365509142,1749723032908,-207.4,0.00020331,2]
[365509144,1749723032918,-164.126,0.0002046,2]
[365509146,1749723032927,-333.9,0.00020508,2]
[365509148,1749723032938,-217.97662502,0.000209,4]
[365509150,1749723032947,-160.0,0.00020917,2]
[365509152,1749723032957,-844.79171733,0.00020917,2]
[365509154,1749723032967,-160.0,0.00020917,2]
[365509155,1749723032977,-160.0,0.00020917,2]
[365509156,1749723032986,-424.26423502,0.00020917,2]
[365509157,1749723032996,-835.15920933,0.00020917,2]
[365509158,1749723033006,-160.0,0.00020917,2]
[365509159,1749723033016,-229.7508257,0.00020917,2]
[365509160,1749723033026,-160.0,0.00020917,2]
[365509162,1749723033036,-11862.37599647,0.00020917,2]
[365509164,1749723033046,-213.20212768,0.00020917,2]
[365509165,1749723033057,-160.0,0.00020917,2]
[365509166,1749723033068,-160.0,0.00021006,3]
[365509167,1749723033078,-217.97662497,0.00021038,4]
[365509168,1749723033088,-500.0,0.00021094,2]
[365509169,1749723033098,-500.0,0.00021094,2]
[365509170,1749723033109,-500.0,0.00021094,2]
[365509171,1749723033118,-325.23482509,0.00021094,2]
[365509172,1749723033127,-649.70442443,0.00021094,2]
[365509173,1749723033137,-355.14350005,0.00021094,2]
[365509174,1749723033147,-500.0,0.00021094,2]
[365509175,1749723033157,-500.0,0.00021094,2]
[365509176,1749723033166,-500.0,0.00021094,2]
[365509177,1749723033177,-500.0,0.00021094,2]
[365509178,1749723033187,-500.0,0.00021094,2]
[365509179,1749723033198,-435.90972739,0.00021094,2]
[365509180,1749723033208,-196.59041465,0.00021094,2]
[365509181,1749723033219,-500.0,0.00021094,2]
[365509182,1749723033228,-500.0,0.00021094,2]
[365509183,1749723033238,-500.0,0.00021094,2]
[365509184,1749723033248,-500.0,0.00021094,2]
[365509185,1749723033259,-476.89041661,0.00021094,2]
[365509186,1749723033270,-500.0,0.00021094,2]
[365509187,1749723033280,-356.33257949,0.00021094,2]
[365509188,1749723033289,-500.0,0.00021094,2]
[365509189,1749723033299,-500.0,0.00021094,2]
[365509190,1749723033457,-500.0,0.00021094,2]
[365509191,1749723033468,-500.0,0.00021094,2]
[365509192,1749723033479,-500.0,0.00021094,2]
[365509193,1749723033490,-253.45799097,0.00021094,2]
[365509194,1749723033501,-500.0,0.00021094,2]
[365509195,1749723033511,-500.0,0.00021094,2]
[365509196,1749723033530,-500.0,0.00021094,2]
[365509197,1749723033542,-500.0,0.00021094,2]
[365509198,1749723033551,-500.0,0.00021094,2]
[365509199,1749723033562,-500.0,0.00021094,2]
[365509200,1749723033573,-335.57369217,0.00021094,2]
[365509201,1749723033583,-500.0,0.00021094,2]
[365509202,1749723033593,-500.0,0.00021094,2]
[365509203,1749723033603,-500.0,0.00021094,2]
[365509204,1749723033613,-460.0,0.00021095,4]
[365509205,1749723033623,-460.0,0.00021095,2]
[365509206,1749723033633,-460.0,0.00021095,2]
[365509207,1749723033643,-460.0,0.00021095,4]
[365509208,1749723033654,-460.0,0.00021095,4]
[365509209,1749723033663,-460.0,0.00021095,4]
[365509210,1749723033674,-417.78066659,0.00021095,4]
[365509211,1749723033683,-460.0,0.00021095,4]
[365509212,1749723033692,-194.12788347,0.00021095,4]
[365509213,1749723033703,-460.0,0.00021095,4]
[365509214,1749723033712,-370.0,0.00021095,4]
[365509215,1749723033722,-480.2,0.00021095,4]
[365509216,1749723033732,-746.87,0.00021095,4]
[365509217,1749723033743,-460.0,0.00021095,4]
[365509218,1749723033753,-460.0,0.00021095,4]
[365509219,1749723033763,-460.0,0.00021095,4]
[365509220,1749723033772,-460.0,0.00021095,4]
[365509221,1749723033783,-460.0,0.00021095,4]
[365509222,1749723033793,-460.0,0.00021095,4]
[365509223,1749723033803,-460.0,0.00021095,4]
[365509224,1749723033813,-460.0,0.00021095,4]
[365509225,1749723033823,-460.0,0.00021095,4]
[365509226,1749723033833,-350.0,0.00021095,2]
[365509227,1749723033844,-460.0,0.00021095,4]
[365509228,1749723033853,-460.0,0.00021095,4]
[365509229,1749723033863,-460.0,0.00021095,4]
[365509230,1749723033873,-545.54,0.00021095,4]
[365509231,1749723033883,-460.0,0.00021095,4]
[365509232,1749723033892,-460.0,0.00021095,4]
[365509233,1749723033902,-460.0,0.00021095,4]
[365509234,1749723033911,-460.0,0.00021095,4]
[365509235,1749723033921,-460.0,0.00021095,4]
[365509236,1749723033931,-460.0,0.00021095,4]
[365509237,1749723033940,-500.8,0.00021095,4]
[365509238,1749723033950,-629.52,0.00021095,4]
[365509239,1749723033960,-621.77,0.00021095,4]
[365509240,1749723033971,-505.6622556,0.00021095,4]
[365509241,1749723033980,-587.29,0.00021095,4]
[365509242,1749723033990,-506.22,0.00021095,4]
[365509243,1749723034000,-621.35584132,0.00021095,2]
[365509244,1749723034010,-460.0,0.00021369,4]
[365509245,1749723034020,-460.0,0.00021369,2]
[365509246,1749723034029,-460.0,0.00021369,2]
[365509247,1749723034039,-460.0,0.00021369,4]
[365509248,1749723034048,-460.0,0.00021369,4]
[365509249,1749723034058,-460.0,0.00021369,4]
[365509250,1749723034068,-480.2,0.00021369,4]
[365509251,1749723034078,-746.87,0.00021369,4]
[365509252,1749723034088,-460.0,0.00021369,4]
[365509253,1749723034098,-460.0,0.00021369,4]
[365509254,1749723034108,-460.0,0.00021369,4]
[365509255,1749723034117,-460.0,0.00021369,4]
[365509256,1749723034127,-460.0,0.00021369,4]
[365509257,1749723034137,-460.0,0.00021369,4]
[365509258,1749723034148,-350.0,0.00021369,2]
[365509259,1749723034157,-460.0,0.00021369,4]
[365509260,1749723034167,-460.0,0.00021369,4]
[365509261,1749723034176,-460.0,0.00021369,4]
[365509263,1749723034186,-545.54,0.00021369,4]
[365509264,1749723034195,-460.0,0.00021369,4]
[365509265,1749723034205,-460.0,0.00021369,4]
[365509266,1749723034215,-460.0,0.00021369,4]
[365509267,1749723034234,-460.0,0.00021369,4]
[365509268,1749723034247,-500.8,0.00021369,4]
[365509269,1749723034257,-629.52,0.00021369,4]
[365509270,1749723034269,-621.77,0.00021369,4]
[365509271,1749723034279,-587.29,0.00021369,4]
[365509272,1749723034291,-506.22,0.00021369,4]
[365509273,1749723034301,-719.46,0.000214,2]
[365509274,1749723034311,-168.0,0.00021452,2]
[365509275,1749723034321,-667.8,0.00021485,2]
[365509276,1749723034331,-420.0,0.00021502,2]
[365509277,1749723034342,-1022.82194998,0.00021543,2]
[365509278,1749723034352,-480.0,0.00021606,2]
[365509279,1749723034362,-500.10828756,0.00021636,2]
[365509280,1749723034372,-500.0,0.00021641,2]
[365509281,1749723034382,-153.38429643,0.00021642,2]
[365509282,1749723034392,-460.0,0.00021643,4]
[365509283,1749723034402,-460.0,0.00021643,2]
[365509284,1749723034412,-460.0,0.00021643,2]
[365509285,1749723034421,-460.0,0.00021643,4]
[365509286,1749723034431,-460.0,0.00021643,4]
[365509287,1749723034441,-460.0,0.00021643,4]
[365509288,1749723034451,-480.2,0.00021643,4]
[365509289,1749723034461,-746.87,0.00021643,4]
[365509290,1749723034472,-460.0,0.00021643,4]
[365509291,1749723034481,-460.0,0.00021643,4]
[365509292,1749723034491,-460.0,0.00021643,4]
[365509293,1749723034501,-329.77154412,0.00021643,4]
[365509294,1749723034511,-460.0,0.00021643,4]
[365509295,1749723034521,-460.0,0.00021643,4]
[365509296,1749723034535,-460.0,0.00021643,4]
[365509297,1749723034545,-460.0,0.00021643,4]
[365509298,1749723034555,-460.0,0.00021643,4]
[365509299,1749723034566,-545.54,0.00021643,4]
[365509300,1749723034576,-460.0,0.00021643,4]
[365509301,1749723034586,-460.0,0.00021643,4]
[365509302,1749723034596,-460.0,0.00021643,4]
[365509303,1749723034607,-460.0,0.00021643,4]
[365509304,1749723034616,-500.8,0.00021643,4]
[365509305,1749723034626,-629.52,0.00021643,4]
[365509306,1749723034635,-621.77,0.00021643,4]
[365509307,1749723034645,-587.29,0.00021643,4]
[365509308,1749723034655,-506.22,0.00021643,4]
[365509309,1749723034665,-500.0,0.00021679,2]
[365509310,1749723034675,-500.0,0.0002168,2]
[365509311,1749723034684,-504.21706496,0.0002168,2]
[365509312,1749723034693,-511.28541419,0.0002168,2]
[365509313,1749723034704,-502.21862397,0.0002168,2]
[365509314,1749723034714,-215.0738,0.000217,2]
[365509315,1749723034724,-160.0,0.00021916,2]
[365509316,1749723034733,-460.0,0.00021917,4]
[365509317,1749723034742,-297.79712,0.00021917,2]
[365509318,1749723034752,-460.0,0.00021917,2]
[365509319,1749723034761,-460.0,0.00021917,4]
[365509320,1749723034771,-460.0,0.00021917,4]
[365509321,1749723034782,-460.0,0.00021917,4]
[365509322,1749723034792,-480.2,0.00021917,4]
[365509323,1749723034802,-746.87,0.00021917,4]
[365509324,1749723034811,-460.0,0.00021917,4]
[365509325,1749723034821,-460.0,0.00021917,4]
[365509326,1749723034831,-460.0,0.00021917,4]
[365509327,1749723034841,-460.0,0.00021917,4]
[365509328,1749723034857,-460.0,0.00021917,4]
[365509329,1749723034869,-460.0,0.00021917,4]
[365509330,1749723034880,-460.0,0.00021917,4]
[365509331,1749723034890,-460.0,0.00021917,4]
[365509332,1749723034905,-545.54,0.00021917,4]
[365509333,1749723034922,-460.0,0.00021917,4]
[365509334,1749723034932,-460.0,0.00021917,4]
[365509335,1749723034942,-460.0,0.00021917,4]
[365509336,1749723034952,-460.0,0.00021917,4]
[365509337,1749723034963,-500.8,0.00021917,4]
[365509338,1749723034973,-629.52,0.00021917,4]
[365509339,1749723034983,-621.77,0.00021917,4]
[365509340,1749723034995,-587.29,0.00021917,4]
[365509341,1749723035005,-506.22,0.00021917,4]
[365509342,1749723035018,-1022.82194996,0.00022036,2]
[365509343,1749723035029,-405.0,0.00022164,2]
[365509344,1749723035039,-412524.66388,0.0002219,2]
[365509345,1749723035051,-460.0,0.00022191,2]
[365509346,1749723035061,-460.0,0.00022191,4]
[365509347,1749723035071,-432.76546904,0.00022191,4]
[365509348,1749723035080,-460.0,0.00022191,4]
[365509349,1749723035089,-480.2,0.00022191,4]
[365509350,1749723035099,-746.87,0.00022191,4]
[365509351,1749723035108,-460.0,0.00022191,4]
[365509352,1749723035117,-600.13836263,0.00022191,4]
[365509353,1749723035126,-161.13563546,0.00022191,4]
[365509354,1749723035136,-460.0,0.00022191,4]
[365509355,1749723035145,-460.0,0.00022191,4]
[365509356,1749723035155,-493.30614042,0.00022191,4]
[365509357,1749723035164,-460.0,0.00022191,4]
[365509358,1749723035174,-460.0,0.00022191,4]
[365509359,1749723035184,-545.54,0.00022191,4]
[365509360,1749723035194,-460.0,0.00022191,4]
[365509361,1749723035204,-460.0,0.00022191,4]
[365509362,1749723035215,-460.0,0.00022191,4]
[365509363,1749723035224,-460.0,0.00022191,4]
[365509364,1749723035234,-500.8,0.00022191,4]
[365509365,1749723035244,-629.52,0.00022191,4]
[365509366,1749723035253,-621.77,0.00022191,4]
[365509367,1749723035263,-587.29,0.00022191,4]
[365509368,1749723035272,-506.22,0.00022191,4]
[365509369,1749723035282,-327.54336643,0.000222,69]
[365509370,1749723035293,-327.54336641,0.000222,69]
[365509371,1749723035304,-327.54336641,0.000222,69]
[365509372,1749723035313,-1000.0,0.00022265,5]
[365509373,1749723035327,-160.0,0.00022378,4]
[365509374,1749723035339,-719.46,0.000224,7]
[365509375,1749723035349,-1001.7,0.00022461,2]
[365509376,1749723035358,-460.0,0.00022465,2]
[365509377,1749723035369,-460.0,0.00022465,4]
[365509378,1749723035379,-460.0,0.00022465,4]
[365509379,1749723035390,-480.2,0.00022465,4]
[365509380,1749723035401,-746.87,0.00022465,4]
[365509381,1749723035413,-460.0,0.00022465,4]
[365509382,1749723035423,-460.0,0.00022465,4]
[365509383,1749723035434,-460.0,0.00022465,4]
[365509384,1749723035445,-460.0,0.00022465,4]
[365509385,1749723035454,-460.0,0.00022465,4]
[365509386,1749723035464,-545.54,0.00022465,4]
[365509387,1749723035473,-460.0,0.00022465,4]
[365509388,1749723035483,-460.0,0.00022465,4]
[365509389,1749723035492,-301.68,0.00022465,4]
[365509390,1749723035502,-460.0,0.00022465,4]
[365509391,1749723035512,-500.8,0.00022465,4]
[365509392,1749723035522,-629.52,0.00022465,4]
[365509393,1749723035535,-621.77,0.00022465,4]
[365509394,1749723035545,-587.29,0.00022465,4]
[365509395,1749723035555,-506.22,0.00022465,4]
[365509396,1749723035566,-153.0,0.00022503,2]
[365509397,1749723035576,-1022.82194996,0.00022529,2]
[365509398,1749723035585,-520.088735,0.0002271,2]
[365509399,1749723035595,-520.088735,0.0002271,2]
[365509400,1749723035604,-460.0,0.00022739,2]
[365509401,1749723035614,-460.0,0.00022739,4]
[365509402,1749723035623,-460.0,0.00022739,4]
[365509403,1749723035633,-480.2,0.00022739,4]
[365509404,1749723035644,-746.87,0.00022739,4]
[365509405,1749723035654,-460.0,0.00022739,4]
[365509406,1749723035664,-460.0,0.00022739,4]
[365509407,1749723035673,-460.0,0.00022739,4]
[365509408,1749723035684,-460.0,0.00022739,4]
[365509409,1749723035694,-460.0,0.00022739,4]
[365509410,1749723035704,-545.54,0.00022739,4]
[365509411,1749723035716,-460.0,0.00022739,4]
[365509412,1749723035725,-322.64955214,0.00022739,4]
[365509413,1749723035742,-137.35044786,0.00022739,4]
[365509414,1749723035754,-256.84,0.00022739,4]
[365509415,1749723035763,-500.8,0.00022739,4]
[365509416,1749723035773,-151.11155214,0.00022739,4]
[365509417,1749723035784,-478.40844786,0.00022739,4]
[365509418,1749723035795,-621.77,0.00022739,4]
[365509419,1749723035804,-587.29,0.00022739,4]
[365509420,1749723035814,-506.22,0.00022739,4]
[365509421,1749723035824,-963.0,0.00022763,2]
[365509422,1749723035833,-1653.36999373,0.00022763,2]
[365509435,1749723038667,-217.97662497,0.00021176,4]
[365509437,1749723038677,-217.97662497,0.00021314,5]
[365509439,1749723038686,-107.78575079,0.00021452,5]
[365509441,1749723038698,-110.19087418,0.00021452,5]
[365509444,1749723038709,-217.97662497,0.0002159,5]
[365509445,1749723038719,-150.14691561,0.00021728,5]
[365509452,1749723038773,-67.82970936,0.00021728,5]
[365509454,1749723038783,-217.97662497,0.00021866,6]
[365509456,1749723038793,-217.97662497,0.00022003,6]
[365509458,1749723038803,-217.97662497,0.00022141,6]
[365509460,1749723038812,-500.0,0.00022189,2]
[365509462,1749723038823,-500.0,0.00022189,2]
[365509464,1749723038833,-500.0,0.00022189,2]
[365509466,1749723038844,-227.81546319,0.00022189,2]
[365509468,1749723038855,-500.0,0.00022189,2]
[365509470,1749723038865,-489.10229869,0.00022189,2]
[365509471,1749723038875,-500.0,0.00022189,2]
[365509473,1749723038885,-500.0,0.00022189,2]
[365509475,1749723038896,-500.0,0.00022189,2]
[365509477,1749723038906,-500.0,0.00022189,2]
[365509479,1749723038916,-500.0,0.00022189,2]